{"text_format":"1","workbook":"xlsx","n_sheets":1,"sheets":["Cadro Plan de melloras"],"not_rendered":{"charts":0,"images":1,"macros":1,"external_links":0,"defined_names":0,"comments":0,"pivot_tables":0},"unopened":[],"bounds":{"document_bytes":16777216,"sheet_cells":100000,"rows_first":2000,"rows_last":500,"rows_between":2000,"halvings":0,"cell_chars":16384,"cell_head_chars":4096},"cells_cut":0,"cells_raw":0,"read":"whole","date_system":"1900"}

{"sheet":"Cadro Plan de melloras","index":0,"n_rows":21,"n_cols":36,"rows_kept":21,"cut":false,"hidden":false,"merged":[[3,0,3,17],[2,0,2,23],[3,18,3,23],[1,5,1,17],[1,18,1,23]]}
[null,null,null,null,null,null,null,null,null,null,null,null,null,null,null,null,null,null,null,null,null,null,null,null,null,null,null,null,null,null,null,null,null,"Renovación da acreditación das titulacións oficiais","Planificada","Universidade"]
[null,null,null,null,null,"FACULTADE DE CC. DA EDUCACIÓN, Ourense",null,null,null,null,null,null,null,null,null,null,null,null,"Área de Calidade",null,null,null,null,null,null,null,null,null,null,null,null,null,null,"Seguimento anual das titulacións","Realizada parcialmente","Centro"]
["Cadro de seguimento do plan de melloras",null,null,null,null,null,null,null,null,null,null,null,null,null,null,null,null,null,null,null,null,null,null,null,null,null,null,null,null,null,null,null,null,"Certificación da implantación do Sistema de Garantía de CALIDADE","Realizada","Títulación"]
["Mestrado en Dificultades de Aprendizaxe e Procesos Cognitivos: Ficha de mellora",null,null,null,null,null,null,null,null,null,null,null,null,null,null,null,null,null,"Revisión / Valoración da acción de mellora",null,null,null,null,null,null,null,null,null,null,null,null,null,null,"SGIC (Revisión pola dirección)","Pendente"]
["CENTRO","Nº de Ficha de mellora","Curso académico no que se formula a acción","Programa de calidade asociado","Criterio do programa ao que se asocia","Ámbito de aplicación","Titulación (sempre que o alcance sexa titulación)","Denominación da acción de mellora","Punto débil / Análise das causas","Obxectivos","Actuacións a desenvolver","Data límite para a súa execución","Recursos / financiamento","Responsable da súa aplicación","Responsable do seguimento","Data para realizar o seguimento","Indicadores de execución ou evidencias documentais da súa implantación","Observacións","Estado / Nivel de cumprimento","Resultados obtidos","Grao de satisfacción","Accions correctoras a desenvolver","Responsable da revisión","Data da revisión",null,null,null,null,null,null,null,null,null,"Outros"]
["Facultade de CC. da Educación",15,"2014-2015","Renovación da acreditación das titulacións oficiais","Indicadores de satisfacción y rendimiento","Titulación","MUDAPC","Mejora de la participación en las encuestas de satisfacción y evaluación docente","La participación en las encuestas de satisfacción es mejorable. La particpación en la evaluación docente es baja","Aumentar la participación en las encuestas","Animar al alumnado a participar. ","2015-07-31","Sin estimar","Coordinadora título","Coordinadora título","2015-11-30","Aumento de la participación",null,"Realizada","Participación curso 2013 (Estudiantes: 48%; Profesores: 59,26%). Participación 2014-2015 (Estudiantes: 62,50%; Profesores: 69,23%)","Alto",null,null,null,null,null,null,null,null,null,null,null,{"$f":"IF(L6=\"\",\"\",IF(AND(L6>TODAY(),S6=\"\"),3,IF(AND(L6<TODAY(),S6=\"\"),0,IF(AND(L6>TODAY(),AH6<=2),3,IF(AND(L6<=TODAY(),AH6<=2),0,IF(S6=\"\",\"\"))))))","v":false},{"$f":"+IF(S6=\"\",\"\",IF(S6=\"Realizada\",3,IF(S6=\"Realizada parcialmente\",2,IF(S6=\"Planificada\",1,0))))","v":3},{"$f":"+IF(L6=\"\",\"\",IF(P6=\"\",\"\",IF(P6>=L6,0,\"\")))","v":0}]
["Facultade de CC. da Educación",14,"2014-2015","Renovación da acreditación das titulacións oficiais","Sistema de Garantía de Calidad","Centro","MUDAPC","Dinamización y fomento de participación e la CGIC","Escaso funcionamiento de la Comisión de Garantía de Calidad y baja participación de profesores, estudiantes y PAS ","Reorganizar el funcionamiento y dinaminzar la CGIC","Promover el número de reuniones. Promover la participación de  los miembros de todos los sectores del centro","2015-10-30","Sin estimar"," CGIC/ / Área de Apoyo a la Docencia y Calidad / Coordinadores de títulos/ Docentes de apoyo a la calidad/ Otros servicios de apoyo de la gestión administrativa.","CGIC","2015-11-30","Actas de las reuniones ",null,"Realizada","Se incrementó el número de reuniones","Alto",null,null,null,null,null,null,null,null,null,null,null,{"$f":"IF(L7=\"\",\"\",IF(AND(L7>TODAY(),S7=\"\"),3,IF(AND(L7<TODAY(),S7=\"\"),0,IF(AND(L7>TODAY(),AH7<=2),3,IF(AND(L7<=TODAY(),AH7<=2),0,IF(S7=\"\",\"\"))))))","v":false},{"$f":"+IF(S7=\"\",\"\",IF(S7=\"Realizada\",3,IF(S7=\"Realizada parcialmente\",2,IF(S7=\"Planificada\",1,0))))","v":3},{"$f":"+IF(L7=\"\",\"\",IF(P7=\"\",\"\",IF(P7>=L7,0,\"\")))","v":0}]
["Facultade de CC. da Educación",13,"2014-2015","Renovación da acreditación das titulacións oficiais","Sistema de Garantía de Calidad","Centro","MUDAPC","Mejora de  la implantación del SGIC","Se debe desplegar completamente el SGC ajustándolo a la realidad y contexto de la facultad"," Revisar y actualizar toda la documentación de calidad.","1-Aprobar el Manual de Calidad revisado y actualizado durante el curso 2013/14, \n2- Aprobar los procedimientos ya revisados durante el curso 2013/14, \n3- Elaborar los procedimientos del SGIC pendientes de actualizar","2015-10-30","Sin estimar","Decanato. Dirección Área de Calidad","Coordinadora de Calidad del Centro","2015-11-30","Adaptación y aprobación del Manual de Calidad y de los procedimientos previstos",null,"Realizada","Actualización del manual y los procedimiementos de calidad","Alto","Ninguna",null,null,null,null,null,null,null,null,null,null,{"$f":"IF(L8=\"\",\"\",IF(AND(L8>TODAY(),S8=\"\"),3,IF(AND(L8<TODAY(),S8=\"\"),0,IF(AND(L8>TODAY(),AH8<=2),3,IF(AND(L8<=TODAY(),AH8<=2),0,IF(S8=\"\",\"\"))))))","v":false},{"$f":"+IF(S8=\"\",\"\",IF(S8=\"Realizada\",3,IF(S8=\"Realizada parcialmente\",2,IF(S8=\"Planificada\",1,0))))","v":3},{"$f":"+IF(L8=\"\",\"\",IF(P8=\"\",\"\",IF(P8>=L8,0,\"\")))","v":0}]
["Facultade de CC. da Educación",12,"2014-2015","Renovación da acreditación das titulacións oficiais","Organización y desarrollo","Titulación","MUDAPC","Mejora y normalización de los sistemas de coordinación docente","Se constata la realización de reuniones de coordinación informales que deben sistematizarse y hacer llegar las decisiones adoptadas a la CGIC","Formalizar la coordinación docente","Sistematizar las reuniones de coordinación docente. Generar evidencias en las que se recojan los acuerdos y decisiones. Enviar dichos registros  a la CGIC para su conocimiento, análisis y valoración si procede.","2016-07-31","Sin estimar","Comisión Académica del máster/ Profesorado/ Decanato/ CGIC.","Comisión Académica del máster/ Profesorado/ Decanato/ CGIC.","2016-12-31","Actas de las reuniones de coordinación",null,"Realizada parcialmente","Ya se han realizado de forma sistemática reuniones de coordinación entre el profesorado.  Se tratará de simplificar al máximo la mecánica de registro y almacenamiento de las evidencias","Alto",null,null,null,null,null,null,null,null,null,null,null,{"$f":"IF(L9=\"\",\"\",IF(AND(L9>TODAY(),S9=\"\"),3,IF(AND(L9<TODAY(),S9=\"\"),0,IF(AND(L9>TODAY(),AH9<=2),3,IF(AND(L9<=TODAY(),AH9<=2),0,IF(S9=\"\",\"\"))))))","v":3},{"$f":"+IF(S9=\"\",\"\",IF(S9=\"Realizada\",3,IF(S9=\"Realizada parcialmente\",2,IF(S9=\"Planificada\",1,0))))","v":2},{"$f":"+IF(L9=\"\",\"\",IF(P9=\"\",\"\",IF(P9>=L9,0,\"\")))","v":0}]
["Facultade de CC. da Educación",11,"2014-2015","Renovación da acreditación das titulacións oficiais","Organización y desarrollo","Titulación","MUDAPC","Solicitud modificación del plan de estudios","Aspectos de la memoria verificada en 2009 no se corresponden con el funcionamiento actual de la titulación","Ajustar el número de plazas de nuevo ingreso ofertadas. Contemplar el número de créditos que pueden ser reconocidos. Corregir desajustes detectados en la memoria y las guías docentes.","Realizar las modificaciones necesarias en la memoria para que todos los aspectos recogidos se correspondan con el funcionamiento actual de la titulación y solicitar autorización de envío a verificación de la modificación do MUDAPC","2015-07-31","Sin estimar","\nCoordinación del máster / Profesorado del máster / CGIC / Junta de Centro/ Órganos institucionales.\n\n\n\n","\nCoordinación del máster / Profesorado del máster / CGIC / Junta de Centro/ Órganos institucionales.\n\n\n\n","2016-07-31","Modificaciones memoria","Las modificaciones solicitadas son: actualización plazas ofertadas, actualización ECTS de matrícula mínima y máxima, actualización justificación del título, añadir competencias básicas y transversales, actualización de distintos apartados de la memoria para ajustarlos a la normativa actual, adecuación a los requisitos del aplicativo de verificación/modificación del MEC","Planificada",null,null,null,null,null,null,null,null,null,null,null,null,null,{"$f":"IF(L10=\"\",\"\",IF(AND(L10>TODAY(),S10=\"\"),3,IF(AND(L10<TODAY(),S10=\"\"),0,IF(AND(L10>TODAY(),AH10<=2),3,IF(AND(L10<=TODAY(),AH10<=2),0,IF(S10=\"\",\"\"))))))","v":0},{"$f":"+IF(S10=\"\",\"\",IF(S10=\"Realizada\",3,IF(S10=\"Realizada parcialmente\",2,IF(S10=\"Planificada\",1,0))))","v":1},{"$f":"+IF(L10=\"\",\"\",IF(P10=\"\",\"\",IF(P10>=L10,0,\"\")))","v":0}]
["Facultade de CC. da Educación",10,"2015-2016","Seguimento anual das titulacións","Recursos materiales y servicios","Centro","MUDAPC","Ampliación de los puntos de conexión eléctrica de las aulas ","Escasez de tomas de electricidad en las aulas debido a un mayor uso de los dispositivos en el contexto de aula.","Ampliar la tomas de corriente para aumentar el uso de cargas con dispositivos móviles asociados al proceso de aprendizaje.","Aumentar las tomas de corriente del aula 2.7.(aula del Máster) ","2016-07-31","Recursos del Vicerrectorado de Campus ","Vicerrectorado de Campus","Vicerrectorado de Campus ","2016-11-30","Ampliación de los puntos de toma de corriente en el aula 2.7",null,"Planificada"]
["Facultade de CC. da Educación",9,"2015-2016","Seguimento anual das titulacións","Recursos materiales y servicios","Centro",null,"Soporte de tecnología punta como medio para facilitar la coordinación docente en los títulos y su gestión administrativa","Es necesario incorporar nuevas herramientas digitales que faciliten  la coordinación pedagógica desde el decanato con los docentes y la gestión administrativa. Las causas atribuibles derivan de la necesidad de mejorar las demandas externas e internas de coordinación y recogida de evidencias.","Organizar y distribuir la información relacionada con los procesos de calidad, así como almacenar las evidencias generadas en la coordinación y dinámicas de trabajo del centro.","Instalar un disco NAS e implementar su uso para fomentar y mejorar las acciones de coordinación pedagógica y la gestión administrativa","2016-07-31","Dotación económica del centro","Decanato. Coordinadora de calidad","Decanato. Coordinadora de calidad","2016-11-30","Compra e instalación de un disco NAS y utilización del mismo.",null,"Planificada",null,null,null,null,null,null,null,null,null,null,null,null,null,3,1,0]
["Facultade de CC. da Educación",8,"2015-2016","Seguimento anual das titulacións","Recursos materiales y servicios","Centro",null,"Adquisición de tecnologías punteras para facilitar su uso didáctico","Es necesario incorporar progresivamente al equipamiento de las aulas recursos digitales de última generación. Las causas atribuibles están asociadas a la demanda de algunos-as docentes para mejorar la metodológica didáctica. ","Adquirir tecnología punta en algunas aulas/laboratorios para promover el uso de recursos didácticos innovadores en la docencia universitaria.","Instalar 2 cañones digitalizadores de tiro corto y una pizarra interactiva","2016-07-31","Recursos económicos del centro. Presupuesto laboratorios","Decanato","Decanato","2016-11-30","Compra e instalación de aparatos digitales interactivos para 2 aulas y un laboratorio.",null,"Planificada",null,null,null,null,null,null,null,null,null,null,null,null,null,3,1,0]
["Facultade de CC. da Educación",7,"2013-2014","Seguimento anual das titulacións","C09- Sistema de Garantía de Calidad","Centro","MUDAPC","Incrementar la incorporación de los protocolos en la aplicación del SGIC","Están incorporados un número muy reducido de protocolos","Completar todos los protocolos del curso 13-14 y 14-15","Incorporación de Protocolos ","2015-07-31","Sin estimar","Comisión Académica. Vicedecana de Calidad","Comisión Académica. Vicedecana de Calidad","2015-10-31","Número de protocolos incorporados",null,"Realizada","Todos los procedimientos están aprobados y actualizados http://goo.gl/0lPgEY","Alto",null,null,null,null,null,null,null,null,null,null,null,false,3,0]
["Facultade de CC. da Educación",6,"2014-2015","Seguimento anual das titulacións","C07-Recursos materiales y servicios","Centro","MUDAPC","Actualización de equipos informáticos obsoletos.                ","Los estudiantes presentan quejas por el mal  funcionamiento de los ordenadores de los laboratorios informáticos","Sustitución progresiva de los equipos informáticos obsoletos","Revisión de equipos y sustitución de los obsoletos","2015-12-31","Recursos económicos del centro/ Presupuesto laboratorios","Decanato","Decanato","2016-07-31","Número de equipos informáticos actualizados",null,"Realizada parcialmente","Se sustituyeron todos los equipos del laboratorio 308","Alto","La actualización de los equipos informáticos es una tarea que se debe de llevar a cabo de forma continuada, por lo que para el próximo curso se renovarán el laboratorio 309","Decanato","2016-12-21",null,null,null,null,null,null,null,null,3,2,0]
["Facultade de CC. da Educación",5,"2011-2012","Seguimento anual das titulacións","C07-Recursos materiales y servicios","Universidade","MUDAPC","Mejora del funcionamiento de la plataforma DocNet","Pérdida de tiempo del personal docente por el mal funcionamiento de la plataforma","Mejorar el funcionamiento  de la plataforma  y facilitar la gestión de las guías al profesorado","Se comunicará al Área de Apoyo, Docencia y Calidad las dificultades detectadas","2015-07-31","Se desconoce","Vicerrectoría de Organización Académica, Profesorado ","Decanato","2015-07-31","Nº de quejas recibidas. Acortar el tiempo necesario para la elaboración, revisión y aprobación de las Guías docentes\n","Se ha comunicado a la responsable de las Guías los problemas encontrados","Realizada parcialmente","Algunas deficiencias han  sido subsanadas, ","Medio","Recoger las quejas del profesorado y comunicarlas al Área de Apoyo, Docencia y Calidad",null,null,null,null,null,null,null,null,null,null,0,2,0]
["Facultade de CC. da Educación",4,"2011-2012","Seguimento anual das titulacións","C06- Recursos Humanos","Centro","MUDAPC","Incremento de PAS (y/o becarios) para la gestión del Máster","Sobrecarga de tareas administrativas para la Coodinadora del Máster","Aumentar el número de PAS (y/o becarios) con dedicación a las labores administrativas del máster. Concretar y definir por escrito las funciones y competencias del\nPAS que desarrolla tareas de gestión administrativa para los títulos del centro.","Se dará traslado  a gerencia de la solicitud justificada de aumentar personal administrativo","2015-12-31","Se desconoce","Gerencia","Decanato","2016-07-31","Asignación de los recursos humanos solicitados","La aplicación del Real Decreto-ley 20/2011, de 30 de diciembre, de medidas urgentes en materia presupuestaria, tributaria y financiera para la corrección del déficit público ha impedido la creación de nuevas plazas en nuestra Universidad tanto de PDI como de PAS ","Pendente","Ninguno","Bajo","Se realizará la solicitud formal al Decanato para que sea remitida a Gerencia",null,null,null,null,null,null,null,null,null,null,3,0,0]
["Facultade de CC. da Educación",3,"2014-2015","Seguimento anual das titulacións","C04- Acceso y admisión de estudiantes","Titulación","MUDAPC","Actividades de orientación académica, laboral y búsqueda de empleo","Bajo índice de satisfacción con  las acciones de orientación","Desarrollar actividades de orientación académica y laboral","Sesión de presentación del programa de doctorado; publicación en el tablón de anuncios del Máster de convocatoria de becas, plazas, empleo","2015-07-31","Sin estimar","Coordinadora título","Coordinadora título","2015-10-31","Realización de sesión. Noticias publicadas",null,"Realizada","Se ha mejorado el índice de satisfacción con las acciones de orientación. Curso 2013-2014 (4,10 sobre 7). Curso 2014-2015 (3,92 sobre 5)","Alto",null,null,null,null,null,null,null,null,null,null,null,false,3,0]
["Facultade de CC. da Educación",2,"2011-2012","Seguimento anual das titulacións","C02-Justificación","Titulación","MUDAPC","Ajuste de las investigaciones realizadas en el Máster  a las necesidades de los centros educativos","Falta de aplicabilidad de algunas investigaciones","Mejorar la justificación científica y profesional del título","Sesiones de trabajo con docentes de otras áreas y Universidades, egresados/as, expertos/as y profesionales","2015-07-31","Sin estimar","Comisión Académica","Coordinadora Título","2015-12-31","Actas sesiones de trabajo","Los empleadores afirman enriquecerse con los trabajos de investigación realizados (IP Acreditación). ","Realizada","Realización de investigaciones ajustadas a las necesidades detectadas","Alto","Ninguna",null,null,null,null,null,null,null,null,null,null,false,3,0]
["Facultade de CC. da Educación",1,"2013-2014","Seguimento anual das titulacións","C01-Descripción del título","Universidade","MUDAPC","Revisión de las webs de la U. de Vigo que hacen referencia al Máster y mejora del acceso a la información sobre el mismo","Duplicidad en la información.  En la web de  UVigo se cambian con frecuencia los enlaces a documentos básicos de los másteres","Unificar y mejorar el acceso a la información del Máster. Mantener actualizada la información. Mantener los links de forma permanente","Modificar las webs. Notificar al Área de Apoyo a la Docencia y Calidad nuestra queja y los cambios propuestos","2015-12-31","Sin estimar","Vic. de Organización Académica, Profesorado y Titulaciones, Decanato  Facultad\n CC de la Educación, MUDAPC","Comisión Académica","2015-12-31","Cambios en las páginas web","Se ha enviado queja. Este curso académico se han realizado cambios en el servidor de la Universidad de Vigo lo que nos ha obligado nuevamente a la revisión de los enlaces","Realizada parcialmente","Fueron modificados algunos apartados de las webs","Medio","Insistir en nuestra petición, y hacerlo constar en informes como el presente.","Comisión Académica","2016-07-31",null,null,null,null,null,null,null,null,3,2,0]
[null,null,null,null,null,null,null,null,null,null,null,null,null,null,null,null,null,null,null,null,null,null,null,null,null,null,null,null,null,null,null,null,"","",""]